fUSD/lending_fUSD_20250108
["ID","MTS","AMOUNT","RATE_DAILY","PERIOD"]
[348168225,1736362244969,-500.0,0.0001072,2]
[348168226,1736362244978,-1301.03,0.0001072,2]
[348168227,1736362244988,-500.0,0.0001072,2]
[348168228,1736362244999,-1988.72,0.0001072,2]
[348168229,1736362245009,-500.0,0.0001072,2]
[348168230,1736362245018,-500.0,0.0001072,2]
[348168231,1736362245030,-500.0,0.0001072,2]
[348168232,1736362245040,-448.70156171,0.0001072,2]
[348168234,1736362245050,-500.0,0.0001072,2]
[348168236,1736362245060,-500.0,0.0001072,2]
[348168238,1736362245070,-1555.02,0.0001072,2]
[348168240,1736362245080,-500.0,0.0001072,2]
[348168242,1736362245090,-500.0,0.0001072,2]
[348168244,1736362245099,-1430.04,0.0001072,2]
[348168246,1736362245109,-500.0,0.0001072,2]
[348168248,1736362245118,-500.0,0.0001072,2]
[348168249,1736362245127,-981.86,0.0001072,2]
[348168251,1736362245136,-500.0,0.0001072,2]
[348168253,1736362245146,-692.07,0.0001072,2]
[348168255,1736362245156,-1072.98,0.0001072,2]
[348168257,1736362245165,-657.45,0.0001072,2]
[348168259,1736362245175,-948.96,0.0001072,2]
[348168260,1736362245184,-553.15,0.0001072,2]
[348168261,1736362245194,-500.0,0.0001072,2]
[348168262,1736362245203,-2333.81,0.0001072,2]
[348168263,1736362245213,-500.0,0.0001072,2]
[348168264,1736362245223,-500.0,0.0001072,2]
[348168265,1736362245233,-762.73,0.0001072,2]
[348168266,1736362245243,-500.0,0.0001072,2]
[348168267,1736362245252,-500.0,0.0001072,2]
[348168268,1736362245262,-500.0,0.0001072,2]
[348168269,1736362245272,-688.07,0.0001072,2]
[348168270,1736362245282,-500.0,0.0001072,2]
[348168271,1736362245291,-500.0,0.0001072,2]
[348168272,1736362245301,-500.0,0.0001072,2]
[348168273,1736362245310,-396.54358092,0.0001072,2]
[348168274,1736362245320,-2329.942514,0.0001072,2]
[348168275,1736362245330,-500.0,0.0001072,2]
[348168276,1736362245339,-500.0,0.0001072,2]
[348168277,1736362245349,-1310.72,0.0001072,2]
[348168278,1736362245362,-1030.81,0.0001072,2]
[348168279,1736362245372,-500.0,0.0001072,2]
[348168280,1736362245382,-2618.54,0.0001072,2]
[348168281,1736362245391,-500.0,0.0001072,2]
[348168282,1736362245401,-500.0,0.0001072,2]
[348168283,1736362245410,-500.0,0.0001072,2]
[348168284,1736362245420,-2072.313167,0.0001072,2]
[348168285,1736362245430,-1325.27,0.0001072,2]
[348168286,1736362245440,-500.0,0.0001072,2]
[348168287,1736362245449,-621.86,0.0001072,2]
[348168288,1736362245458,-500.0,0.0001072,2]
[348168289,1736362245468,-500.0,0.0001072,2]
[348168290,1736362245479,-500.0,0.0001072,2]
[348168291,1736362245489,-500.0,0.0001072,2]
[348168292,1736362245499,-500.0,0.0001072,2]
[348168293,1736362245508,-241.85,0.0001072,2]
[348168294,1736362245518,-3041.28,0.0001072,2]
[348168295,1736362245530,-1664.79,0.0001072,2]
[348168296,1736362245540,-500.0,0.0001072,2]
[348168297,1736362245550,-500.0,0.0001072,2]
[348168298,1736362245559,-500.0,0.00010721,2]
[348168299,1736362245569,-500.0,0.00010721,2]
[348168300,1736362245578,-500.0,0.00010721,2]
[348168301,1736362245588,-616.1,0.00010721,2]
[348168302,1736362245598,-307.18020261,0.00010721,2]
[348168303,1736362245607,-500.0,0.00010721,2]
[348168304,1736362245618,-500.0,0.00010721,2]
[348168305,1736362245628,-500.0,0.00010721,2]
[348168306,1736362245639,-500.0,0.00010721,2]
[348168307,1736362245649,-500.0,0.00010721,2]
[348168308,1736362245659,-274.66216994,0.00010721,2]
[348168309,1736362245668,-500.0,0.00010721,2]
[348168310,1736362245677,-500.0,0.00010721,2]
[348168311,1736362245687,-500.0,0.00010721,2]
[348168312,1736362245696,-598.80358881,0.00010721,2]
[348168313,1736362245707,-500.0,0.00010721,2]
[348168314,1736362245716,-500.0,0.00010721,2]
[348168315,1736362245725,-500.0,0.00010721,2]
[348168316,1736362245735,-500.0,0.00010721,2]
[348168317,1736362245744,-500.0,0.00010721,2]
[348168318,1736362245754,-500.0,0.00010721,2]
[348168320,1736362245763,-500.0,0.00010721,2]
[348168321,1736362245773,-608.48,0.00010721,2]
[348168322,1736362245783,-500.0,0.00010721,2]
[348168323,1736362245792,-500.0,0.00010721,2]
[348168324,1736362245802,-720.65,0.00010721,2]
[348168325,1736362245813,-500.0,0.00010721,2]
[348168326,1736362245823,-500.0,0.00010721,2]
[348168327,1736362245832,-500.0,0.00010721,2]
[348168328,1736362245842,-500.0,0.00010721,2]
[348168329,1736362245852,-500.0,0.00010721,2]
[348168330,1736362245862,-500.0,0.00010721,2]
[348168331,1736362245871,-500.0,0.00010721,2]
[348168332,1736362245880,-500.0,0.00010721,2]
[348168333,1736362245890,-500.0,0.00010721,2]
[348168334,1736362245900,-500.0,0.00010721,2]
[348168335,1736362245909,-500.0,0.00010721,2]
[348168336,1736362245920,-500.0,0.00010721,2]
[348168337,1736362245930,-500.0,0.00010721,2]
[348168338,1736362245940,-500.0,0.00010721,2]
[348168339,1736362245950,-500.0,0.00010721,2]
[348168340,1736362245960,-500.0,0.00010721,2]
[348168341,1736362245970,-500.0,0.00010721,2]
[348168342,1736362245979,-500.0,0.00010721,2]
[348168343,1736362245988,-585.9,0.00010721,2]
[348168344,1736362245999,-500.0,0.00010721,2]
[348168345,1736362246008,-500.0,0.00010721,2]
[348168346,1736362246018,-500.0,0.00010721,2]
[348168347,1736362246030,-500.0,0.00010721,2]
[348168348,1736362246040,-500.0,0.00010721,2]
[348168349,1736362246050,-500.0,0.00010721,2]
[348168350,1736362246059,-500.0,0.00010721,2]
[348168351,1736362246068,-500.0,0.00010721,2]
[348168352,1736362246077,-500.0,0.00010721,2]
[348168353,1736362246087,-624.94,0.00010721,2]
[348168354,1736362246095,-500.0,0.00010721,2]
[348168355,1736362246104,-500.0,0.00010721,2]
[348168356,1736362246113,-665.75,0.00010721,2]
[348168357,1736362246123,-659.93,0.00010721,2]
[348168358,1736362246132,-500.0,0.00010721,2]
[348168359,1736362246141,-502.87892929,0.00010721,2]
[348168360,1736362246151,-500.0,0.00010721,2]
[348168361,1736362246160,-500.0,0.00010721,2]
[348168362,1736362246170,-500.0,0.00010721,2]
[348168363,1736362246180,-500.0,0.00010721,2]
[348168364,1736362246189,-500.0,0.00010721,2]
[348168365,1736362246199,-375.61,0.00010721,2]
[348168366,1736362246208,-500.0,0.00010721,2]
[348168367,1736362246218,-500.0,0.00010721,2]
[348168368,1736362246227,-558.41,0.00010721,2]
[348168369,1736362246236,-500.0,0.00010721,2]
[348168370,1736362246245,-500.0,0.00010721,2]
[348168371,1736362246255,-500.0,0.00010721,2]
[348168372,1736362246264,-500.0,0.00010721,2]
[348168373,1736362246274,-500.0,0.00010721,2]
[348168375,1736362246284,-500.0,0.00010721,2]
[348168377,1736362246293,-500.0,0.00010721,2]
[348168379,1736362246303,-500.0,0.00010721,2]
[348168381,1736362246312,-500.0,0.00010721,2]
[348168383,1736362246321,-500.0,0.00010721,2]
[348168384,1736362246330,-500.0,0.00010721,2]
[348168385,1736362246340,-500.0,0.00010721,2]
[348168386,1736362246350,-500.0,0.00010721,2]
[348168387,1736362246361,-500.0,0.00010721,2]
[348168388,1736362246370,-500.0,0.00010721,2]
[348168389,1736362246380,-500.0,0.00010721,2]
[348168390,1736362246390,-500.0,0.00010721,2]
[348168391,1736362246400,-500.0,0.00010721,2]
[348168392,1736362246409,-500.0,0.00010721,2]
[348168393,1736362246419,-500.0,0.00010721,2]
[348168394,1736362246428,-500.0,0.00010721,2]
[348168395,1736362246437,-1462.34,0.00010721,2]
[348168396,1736362246447,-500.0,0.00010721,2]
[348168398,1736362246456,-757.86,0.00010721,2]
[348168400,1736362246467,-500.0,0.00010721,2]
[348168402,1736362246478,-701.16,0.00010721,2]
[348168403,1736362246489,-2580.23,0.00010721,2]
[348168405,1736362246501,-500.0,0.00010721,2]
[348168407,1736362246511,-628.18,0.00010721,2]
[348168409,1736362246520,-500.0,0.00010721,2]
[348168411,1736362246531,-500.0,0.00010721,2]
[348168413,1736362246541,-500.0,0.00010721,2]
[348168415,1736362246550,-500.0,0.00010721,2]
[348168417,1736362246559,-636.96,0.00010773,2]
[348168419,1736362246569,-154.04474973,0.00010781,2]
[348168421,1736362246578,-1215.3,0.00010794,2]
[348168423,1736362246588,-993.2,0.00010794,2]
[348168425,1736362246597,-523.6,0.00010855,2]
[348168427,1736362246606,-500.0,0.00010855,2]
[348168430,1736362246615,-500.0,0.00010855,2]
[348168433,1736362246624,-500.0,0.00010856,2]
[348168435,1736362246634,-500.0,0.00010856,2]
[348168437,1736362246643,-1871.82,0.00010856,2]
[348168439,1736362246651,-500.0,0.00010856,2]
[348168441,1736362246661,-651.25,0.00010856,2]
[348168443,1736362246670,-515.76,0.00010856,2]
[348168445,1736362246679,-507.55,0.00010856,2]
[348168447,1736362246688,-500.0,0.00010856,2]
[348168449,1736362246697,-500.0,0.00010856,2]
[348168451,1736362246706,-500.0,0.00010856,2]
[348168453,1736362246715,-500.0,0.00010892,2]
[348168455,1736362246724,-500.66150881,0.00010893,2]
[348168457,1736362246733,-500.0,0.00010893,2]
[348168459,1736362246742,-992.92,0.00010893,2]
[348168461,1736362246751,-500.0,0.00010893,2]
[348168463,1736362246760,-605.86,0.00010893,2]
[348168465,1736362246769,-688.45,0.00010893,2]
[348168467,1736362246780,-1118.67,0.00010893,2]
[348168469,1736362246790,-618.66,0.00010893,2]
[348168471,1736362246799,-868.06,0.00010893,2]
[348168473,1736362246808,-1466.85,0.00010893,2]
[348168475,1736362246818,-780.29,0.00010893,2]
[348168477,1736362246827,-730.05,0.00010893,2]
[348168479,1736362246836,-500.0,0.00010893,2]
[348168481,1736362246845,-796.37,0.00010893,2]
[348168483,1736362246855,-1887.92,0.00010893,2]
[348168485,1736362246865,-976.17,0.00010893,2]
[348168487,1736362246874,-543.78,0.00010893,2]
[348168489,1736362246883,-500.0,0.00010893,2]
[348168491,1736362246893,-500.0,0.00010893,2]
[348168493,1736362246903,-862.27,0.00010893,2]
[348168495,1736362246914,-500.0,0.00010893,2]
[348168497,1736362246927,-559.19,0.00010893,2]
[348168499,1736362246936,-500.0,0.00010893,2]
[348168501,1736362246946,-508.44,0.00010893,2]
[348168503,1736362246955,-1264.47,0.00010893,2]
[348168505,1736362246964,-5191.75,0.00010893,2]
[348168507,1736362246974,-533.52,0.00010893,2]
[348168509,1736362246983,-852.061,0.00010895,2]
[348168511,1736362246992,-214.3144486,0.000109,2]
[348168513,1736362247002,-150.0,0.00010959,2]
[348168514,1736362247012,-500.0,0.00010966,2]
[348168515,1736362247021,-500.0,0.00010966,2]
[348168516,1736362247032,-500.0,0.00010966,2]
[348168517,1736362247040,-2544.2,0.00010966,2]
[348168518,1736362247049,-1042.29,0.00010966,2]
[348168519,1736362247058,-629.99,0.00010966,2]
[348168520,1736362247067,-500.0,0.00010966,2]
[348168521,1736362247076,-926.3,0.00010966,2]
[348168522,1736362247086,-1464.56,0.00010966,2]
[348168524,1736362247095,-1397.23,0.00010966,2]
[348168526,1736362247105,-2215.57,0.00010966,2]
[348168528,1736362247114,-1134.57,0.00010966,2]
[348168530,1736362247124,-3254.43,0.00010966,2]
[348168532,1736362247134,-3864.53,0.00010966,2]
[348168534,1736362247143,-500.0,0.00010986,2]
[348168536,1736362247153,-500.0,0.00010994,2]
[348168538,1736362247162,-500.0,0.00010994,2]
[348168540,1736362247171,-500.0,0.00010994,2]
[348168542,1736362247180,-577.51,0.00010994,2]
[348168544,1736362247190,-500.0,0.00010994,2]
[348168563,1736362247356,-587.5,0.00010994,2]
[348168565,1736362247366,-500.0,0.00010994,2]
[348168567,1736362247376,-500.0,0.00010994,2]
[348168569,1736362247386,-500.0,0.00010994,2]
[348168571,1736362247395,-500.0,0.00010994,2]
[348168573,1736362247405,-500.0,0.00010994,2]
[348168575,1736362247415,-500.0,0.00010994,2]
[348168577,1736362247425,-500.0,0.00010994,2]
[348168579,1736362247435,-658.68,0.00010994,2]
[348168581,1736362247444,-500.0,0.00010994,2]
[348168583,1736362247453,-290.95,0.00010994,2]
[348168585,1736362247463,-500.0,0.00010994,2]
[348168587,1736362247472,-500.0,0.00010994,2]
[348168589,1736362247481,-500.0,0.00010994,2]
[348168591,1736362247490,-500.0,0.00010994,2]
[348168593,1736362247499,-500.0,0.00010994,2]
[348168595,1736362247509,-500.0,0.00010994,2]
[348168597,1736362247518,-801.18,0.00010994,2]
[348168599,1736362247528,-500.0,0.00010994,2]
[348168601,1736362247538,-701.9,0.00010994,2]
[348168603,1736362247547,-500.0,0.00010994,2]
[348168605,1736362247557,-500.0,0.00010994,2]
[348168607,1736362247566,-609.7,0.00010994,2]
[348168609,1736362247575,-500.0,0.00010994,2]
[348168611,1736362247585,-500.0,0.00010994,2]
[348168612,1736362247595,-693.7,0.00010994,2]
[348168614,1736362247604,-603.79912995,0.00010994,2]
[348168616,1736362247614,-567.61666858,0.00010994,2]
[348168618,1736362247624,-500.0,0.00010994,2]
[348168620,1736362247633,-718.53,0.00010994,2]
[348168623,1736362247642,-500.0,0.00010994,2]
[348168624,1736362247652,-500.0,0.00010994,2]
[348168626,1736362247661,-500.0,0.00010994,2]
[348168628,1736362247671,-784.05,0.00010994,2]
[348168630,1736362247680,-500.0,0.00010994,2]
[348168633,1736362247690,-557.73,0.00010994,2]
[348168634,1736362247699,-500.0,0.00010994,2]
[348168636,1736362247708,-500.0,0.00010994,2]
[348168638,1736362247718,-465.88450479,0.00010994,2]
[348168640,1736362247728,-560.21,0.00010994,2]
[348168642,1736362247737,-500.0,0.00010994,2]
[348168644,1736362247746,-500.0,0.00010994,2]
[348168646,1736362247756,-500.0,0.00010994,2]
[348168649,1736362247765,-500.0,0.00010994,2]
[348168650,1736362247774,-500.0,0.00010994,2]
[348168652,1736362247784,-500.0,0.00010994,2]
[348168654,1736362247793,-500.0,0.00010994,2]
[348168656,1736362247803,-500.0,0.00010994,2]
[348168658,1736362247812,-500.0,0.00010994,2]
[348168660,1736362247821,-642.81,0.00010994,2]
[348168662,1736362247830,-500.0,0.00010994,2]
[348168664,1736362247840,-500.0,0.00010994,2]
[348168666,1736362247849,-956.3,0.00010994,2]
[348168668,1736362247858,-500.0,0.00010994,2]
[348168670,1736362247868,-500.0,0.00010994,2]
[348168672,1736362247877,-500.0,0.00010994,2]
[348168674,1736362247887,-583.48,0.00010994,2]
[348168676,1736362247896,-500.0,0.00010994,2]
[348168678,1736362247905,-500.0,0.00010994,2]
[348168680,1736362247916,-603.91,0.00010994,2]
[348168682,1736362247929,-500.0,0.00010994,2]
[348168684,1736362247938,-500.0,0.00010994,2]
[348168686,1736362247948,-500.0,0.00010994,2]
[348168688,1736362247959,-1933.32,0.00010994,2]
[348168690,1736362247968,-500.0,0.00010994,2]
[348168692,1736362247978,-500.0,0.00010994,2]
[348168694,1736362247987,-500.0,0.00010994,2]
[348168696,1736362247998,-657.09,0.00010994,2]
[348168698,1736362248007,-576.46,0.00010994,2]
[348168700,1736362248017,-666.44,0.00010994,2]
[348168702,1736362248026,-554.61,0.00010994,2]
[348168704,1736362248035,-500.0,0.00010994,2]
[348168706,1736362248045,-500.0,0.00010994,2]
[348168708,1736362248055,-2827.12,0.00010994,2]
[348168710,1736362248065,-2378.14,0.00010994,2]
[348168712,1736362248075,-1628.91,0.00010994,2]
[348168714,1736362248087,-590.58,0.00010994,2]
[348168717,1736362248098,-500.0,0.00010994,2]
[348168719,1736362248108,-2603.36,0.00010994,2]
[348168720,1736362248118,-500.0,0.00010994,2]
[348168723,1736362248128,-500.0,0.00010994,2]
[348168724,1736362248138,-1087.38,0.00010994,2]
[348168727,1736362248147,-500.0,0.00010994,2]
[348168728,1736362248157,-500.0,0.00010994,2]
[348168729,1736362248166,-500.0,0.00010994,2]
[348168730,1736362248176,-3082.77,0.00010994,2]
[348168731,1736362248187,-573.65,0.00010994,2]
[348168732,1736362248197,-787.24,0.00010994,2]
[348168733,1736362248207,-500.0,0.00010994,2]
[348168734,1736362248217,-1301.03,0.00010994,2]
[348168735,1736362248228,-500.0,0.00010994,2]
[348168736,1736362248237,-1988.72,0.00010994,2]
[348168737,1736362248247,-240.00469539,0.00010994,2]
[348168738,1736362248258,-500.0,0.00010994,2]
[348168739,1736362248268,-500.0,0.00010994,2]
[348168740,1736362248278,-500.0,0.00010994,2]
[348168741,1736362248287,-500.0,0.00010994,2]
[348168742,1736362248297,-1555.02,0.00010994,2]
[348168743,1736362248306,-500.0,0.00010994,2]
[348168744,1736362248316,-1430.04,0.00010994,2]
[348168745,1736362248326,-500.0,0.00010994,2]
[348168746,1736362248336,-338.71063934,0.00010994,2]
[348168747,1736362248345,-981.86,0.00010994,2]
[348168748,1736362248354,-500.0,0.00010994,2]
[348168749,1736362248365,-692.07,0.00010994,2]
[348168750,1736362248376,-1072.98,0.00010994,2]
[348168751,1736362248386,-657.45,0.00010994,2]
[348168752,1736362248395,-948.96,0.00010994,2]
[348168753,1736362248405,-553.15,0.00010994,2]
[348168754,1736362248415,-500.0,0.00010994,2]
[348168755,1736362248425,-2333.81,0.00010994,2]
[348168756,1736362248436,-500.0,0.00010994,2]
[348168757,1736362248446,-500.0,0.00010994,2]
[348168758,1736362248457,-500.0,0.00010994,2]
[348168759,1736362248468,-762.73,0.00010994,2]
[348168760,1736362248477,-500.0,0.00010994,2]
[348168761,1736362248487,-688.07,0.00010994,2]
[348168762,1736362248496,-500.0,0.00010994,2]
[348168763,1736362248507,-500.0,0.00010994,2]
[348168764,1736362248517,-440.58180573,0.00010994,2]
[348168765,1736362248528,-500.0,0.00010994,2]
[348168766,1736362248539,-2329.942514,0.00010994,2]
[348168767,1736362248550,-500.0,0.00010994,2]
[348168768,1736362248560,-491.05976944,0.00010994,2]
[348168769,1736362248571,-1310.72,0.00010994,2]
[348168770,1736362248581,-1030.81,0.00010994,2]
[348168771,1736362248591,-500.0,0.00010994,2]
[348168772,1736362248600,-500.0,0.00010994,2]
[348168773,1736362248609,-2618.54,0.00010994,2]
[348168774,1736362248619,-500.0,0.00010994,2]
[348168775,1736362248628,-500.0,0.00010994,2]
[348168776,1736362248638,-2072.313167,0.00010994,2]
[348168777,1736362248647,-1325.27,0.00010994,2]
[348168778,1736362248657,-500.0,0.00010994,2]
[348168779,1736362248668,-621.86,0.00010994,2]
[348168780,1736362248678,-500.0,0.00010994,2]
[348168781,1736362248688,-500.0,0.00010994,2]
[348168782,1736362248699,-199.52374206,0.00010994,2]
[348168783,1736362248710,-515.09115546,0.00010994,2]
[348168784,1736362248722,-500.0,0.00010994,2]
[348168785,1736362248735,-3041.28,0.00010994,2]
[348168786,1736362248747,-1664.79,0.00010994,2]
[348168787,1736362248757,-500.0,0.00010994,2]
[348168788,1736362248768,-500.0,0.00010995,2]
[348168789,1736362248780,-500.0,0.00010995,2]
[348168790,1736362248791,-500.0,0.00010995,2]
[348168791,1736362248800,-500.0,0.00010995,2]
[348168792,1736362248810,-500.0,0.00010995,2]
[348168793,1736362248820,-500.0,0.00010995,2]
[348168794,1736362248830,-500.0,0.00010995,2]
[348168795,1736362248840,-500.0,0.00010995,2]
[348168796,1736362248850,-500.0,0.00010995,2]
[348168797,1736362248860,-500.0,0.00010995,2]
[348168798,1736362248870,-500.0,0.00010995,2]
[348168799,1736362248881,-604.64,0.00010995,2]
[348168800,1736362248891,-500.0,0.00010995,2]
[348168801,1736362248901,-500.0,0.00010995,2]
[348168802,1736362248911,-190.86458025,0.00010995,2]
[348168803,1736362248925,-500.0,0.00010995,2]
[348168804,1736362248935,-500.0,0.00010995,2]
[348168805,1736362248945,-608.48,0.00010995,2]
[348168806,1736362248955,-500.0,0.00010995,2]
[348168807,1736362248966,-500.0,0.00010995,2]
[348168808,1736362248976,-720.65,0.00010995,2]
[348168809,1736362248986,-500.0,0.00010995,2]
[348168810,1736362248996,-500.0,0.00010995,2]
[348168811,1736362249007,-500.0,0.00010995,2]
[348168812,1736362249017,-500.0,0.00010995,2]
[348168813,1736362249027,-500.0,0.00010995,2]
[348168814,1736362249038,-500.0,0.00010995,2]
[348168815,1736362249048,-566.83,0.00010995,2]
[348168816,1736362249058,-500.0,0.00010995,2]
[348168817,1736362249068,-500.0,0.00010995,2]
[348168818,1736362249079,-500.0,0.00010995,2]
[348168819,1736362249089,-500.0,0.00010995,2]
[348168820,1736362249099,-408.51504294,0.00010995,2]
[348168821,1736362249109,-320.76809571,0.00010995,2]
[348168822,1736362249119,-500.0,0.00010995,2]
[348168823,1736362249128,-500.0,0.00010995,2]
[348168824,1736362249139,-500.0,0.00010995,2]
[348168825,1736362249149,-297.86,0.00010995,2]
[348168826,1736362249159,-500.0,0.00010995,2]
[348168827,1736362249171,-500.0,0.00010995,2]
[348168828,1736362249181,-500.0,0.00010995,2]
[348168829,1736362249191,-500.0,0.00010995,2]
[348168830,1736362249201,-500.0,0.00010995,2]
[348168831,1736362249212,-624.42,0.00010995,2]
[348168832,1736362249222,-500.0,0.00010995,2]
[348168833,1736362249232,-500.0,0.00010995,2]
[348168834,1736362249242,-624.94,0.00010995,2]
[348168835,1736362249252,-500.0,0.00010995,2]
[348168836,1736362249262,-289.82800921,0.00010995,2]
[348168837,1736362249272,-665.75,0.00010995,2]
[348168838,1736362249284,-659.93,0.00010995,2]
[348168839,1736362249294,-500.0,0.00010995,2]
[348168840,1736362249303,-193.39,0.00010995,2]
[348168841,1736362249314,-500.0,0.00010995,2]
[348168842,1736362249324,-500.0,0.00010995,2]
[348168843,1736362249334,-500.0,0.00010995,2]
[348168844,1736362249343,-500.0,0.00010995,2]
[348168845,1736362249353,-500.0,0.00010995,2]
[348168846,1736362249364,-500.0,0.00010995,2]
[348168847,1736362249374,-500.0,0.00010995,2]
[348168848,1736362249384,-500.0,0.00010995,2]
[348168849,1736362249394,-500.0,0.00010995,2]
[348168850,1736362249403,-356.75208381,0.00010995,2]
[348168851,1736362249413,-500.0,0.00010995,2]
[348168852,1736362249423,-500.0,0.00010995,2]
[348168853,1736362249433,-500.0,0.00010995,2]
[348168854,1736362249443,-500.0,0.00010995,2]
[348168855,1736362249453,-500.0,0.00010995,2]
[348168856,1736362249462,-500.0,0.00010995,2]
[348168857,1736362249472,-500.0,0.00010995,2]
[348168858,1736362249482,-500.0,0.00010995,2]
[348168859,1736362249492,-500.0,0.00010995,2]
[348168860,1736362249503,-500.0,0.00010995,2]
[348168861,1736362249513,-500.0,0.00010995,2]
[348168862,1736362249523,-500.0,0.00010995,2]
[348168863,1736362249533,-500.0,0.00010995,2]
[348168864,1736362249543,-500.0,0.00010995,2]
[348168865,1736362249554,-500.0,0.00010995,2]
[348168866,1736362249564,-500.0,0.00010995,2]
[348168867,1736362249574,-500.0,0.00010995,2]
[348168868,1736362249584,-1462.34,0.00010995,2]
[348168869,1736362249593,-500.0,0.00010995,2]
[348168870,1736362249602,-757.86,0.00010995,2]
[348168871,1736362249611,-500.0,0.00010995,2]
[348168872,1736362249621,-701.16,0.00010995,2]
[348168873,1736362249631,-2580.23,0.00010995,2]
[348168874,1736362249641,-500.0,0.00010995,2]
[348168875,1736362249650,-628.18,0.00010995,2]
[348168876,1736362249659,-500.0,0.00010995,2]
[348168877,1736362249669,-500.0,0.00010995,2]
[348168878,1736362249679,-465.01,0.00010995,2]
[348168879,1736362249689,-500.0,0.00010995,2]
[348168880,1736362249699,-255.0,0.00010999,2]
[348168881,1736362249708,-150.0,0.00011047,2]
[348168882,1736362249718,-150.0,0.00011047,2]
[348168883,1736362249727,-150.0,0.00011047,2]
[348168884,1736362249738,-150.0,0.00011047,2]
[348168885,1736362249748,-1215.3,0.00011068,2]
[348168886,1736362249758,-993.2,0.00011068,2]
[348168887,1736362249768,-150.0,0.000111,2]
[348168888,1736362249779,-214.31444851,0.00011122,2]
[348168889,1736362249789,-500.0,0.00011129,2]
[348168890,1736362249799,-500.0,0.00011129,2]
[348168891,1736362249808,-500.0,0.0001113,2]
[348168892,1736362249817,-500.0,0.0001113,2]
[348168893,1736362249827,-1871.82,0.0001113,2]
[348168894,1736362249837,-500.0,0.0001113,2]
[348168895,1736362249847,-651.25,0.0001113,2]
[348168896,1736362249857,-515.76,0.0001113,2]
[348168897,1736362249867,-507.55,0.0001113,2]
[348168898,1736362249876,-500.0,0.0001113,2]
[348168899,1736362249885,-500.0,0.0001113,2]
[348168900,1736362249894,-500.0,0.0001113,2]
[348168901,1736362249904,-150.0,0.00011153,2]
[348168902,1736362249913,-150.0,0.00011158,2]
[348168903,1736362249927,-500.0,0.00011167,2]
[348168904,1736362249937,-992.92,0.00011167,2]
[348168905,1736362249946,-500.0,0.00011167,2]
[348168906,1736362249955,-605.86,0.00011167,2]
[348168907,1736362249966,-718.38,0.00011167,2]
[348168908,1736362249975,-688.45,0.00011167,2]
[348168909,1736362249984,-1118.67,0.00011167,2]
[348168910,1736362249993,-618.66,0.00011167,2]
[348168911,1736362250002,-868.06,0.00011167,2]
[348168912,1736362250012,-1466.85,0.00011167,2]
[348168913,1736362250022,-780.29,0.00011167,2]